bitfinex/quotes_SOLUSD_20251006
["timestamp","ask_amount","ask_price","bid_price","bid_amount"]
[1759772467279,1e-08,236.35,236.32,0.71]
[1759772467572,1e-08,236.35,236.33,30.54]
[1759772468481,1e-08,236.35,236.33,31.25]
[1759772469359,1e-08,236.35,236.29,10.58008517]
[1759772469360,0.67000001,236.35,236.32,4.23151199]
[1759772469565,0.67000001,236.35,236.34,30.54]
[1759772471675,0.67000001,236.35,236.31,4.23167582]
[1759772471970,0.67,236.34,236.3,4.23188769]
[1759772472179,0.67,236.34,236.31,30.54]
[1759772472363,1e-08,236.35,236.3,4.23188769]
[1759772472678,0.67000001,236.35,236.32,30.54]
[1759772473376,1e-08,236.35,236.32,30.54]
[1759772473887,1e-08,236.35,236.33,31.25]
[1759772474088,1e-08,236.35,236.34,10.87647521]
[1759772474255,0.1,236.45,236.4,20.8]
[1759772474452,0.1,236.45,236.41,31.25]
[1759772474686,0.1,236.45,236.42,30.54]
[1759772474894,0.1,236.45,236.42,31.25]
[1759772475986,0.1,236.45,236.42,35.47963761]
[1759772476191,0.1,236.45,236.42,34.76963761]
[1759772476576,0.1,236.45,236.43,0.71]
[1759772477393,0.1,236.45,236.44,0.71]
[1759772478089,0.1,236.45,236.44,30.52]
[1759772478574,0.1,236.45,236.44,31.23]
[1759772479978,0.1,236.45,236.44,42.10647521]
[1759772480185,0.1,236.45,236.44,15.81587801]
[1759772480385,0.1,236.45,236.44,46.33587801]
[1759772482187,0.1,236.45,236.44,15.81587801]
[1759772482389,0.1,236.45,236.41,21.51]
[1759772482590,0.1,236.45,236.38,15.81695156]
[1759772482591,0.72,236.44,236.38,15.81695156]
[1759772482883,0.72,236.44,236.42,20.8]
[1759772483058,0.1,236.45,236.42,20.8]
[1759772483261,0.1,236.45,236.43,31.23]
[1759772483689,0.1,236.45,236.44,30.52]
[1759772483999,0.82,236.45,236.38,4.23047635]
[1759772484170,0.1,236.45,236.42,20.8]
[1759772484368,0.1,236.45,236.43,30.52]
[1759772484569,0.82,236.45,236.43,30.52]
[1759772485497,0.1,236.45,236.43,30.52]
[1759772485700,0.1,236.45,236.41,0.71]
[1759772485862,0.1,236.45,236.42,30.52]
[1759772486264,0.1,236.45,236.44,20.8]
[1759772486570,0.1,236.45,236.44,51.3]
[1759772488187,0.1,236.45,236.44,30.5]
[1759772488577,0.1,236.45,236.41,4.93991677]
[1759772488784,0.1,236.45,236.44,20.8]
[1759772488982,0.1,236.45,236.44,51.3]
[1759772490392,0.82,236.45,236.39,21.51]
[1759772490643,0.82,236.45,236.4,30.5]
[1759772490788,0.82,236.45,236.39,21.51]
[1759772491089,0.82,236.45,236.4,30.5]
[1759772491293,0.82,236.45,236.41,30.5]
[1759772491599,0.82,236.45,236.33,0.71]
[1759772491600,0.72,236.44,236.33,0.71]
[1759772491981,0.72,236.44,236.34,30.5]
[1759772492170,0.72,236.43,236.37,20.8]
[1759772492376,14.90230851,236.45,236.33,0.71]
[1759772492377,0.72,236.42,236.33,0.71]
[1759772492683,0.72,236.42,236.37,20.8]
[1759772492684,4.94991477,236.42,236.37,20.8]
[1759772492996,0.72,236.41,236.38,30.5]
[1759772493172,0.72,236.4,236.38,30.5]
[1759772493504,0.72,236.39,236.37,30.5]
[1759772493672,0.72,236.38,236.37,30.5]
[1759772494077,0.72,236.38,236.36,51.3]
[1759772495818,0.72,236.41,236.39,20.8]
[1759772496021,0.72,236.4,236.39,20.8]
[1759772496392,0.72,236.4,236.33,0.72]
[1759772496592,4.23029738,236.39,236.37,20.8]
[1759772496806,4.23029738,236.39,236.38,20.8]
[1759772497523,17.44866712,236.39,236.27,0.72]
[1759772497700,1.92262627,236.38,236.27,0.72]
[1759772498016,0.72,236.37,236.31,20.8]
[1759772498221,0.72,236.36,236.31,20.8]
[1759772498522,0.72,236.35,236.31,51.3]
[1759772499600,15.52604085,236.39,236.32,0.72]
[1759772500203,15.52604085,236.39,236.31,51.3]
[1759772500401,0.72,236.38,236.31,20.8]
[1759772500603,0.72,236.37,236.31,20.8]
[1759772500796,4.95083432,236.36,236.31,20.8]
[1759772501011,0.72,236.35,236.31,20.8]
[1759772501208,0.72,236.35,236.31,51.3]
[1759772501397,0.72,236.34,236.33,20.8]
[1759772502110,4.23036972,236.39,236.33,21.52]
[1759772502313,4.23036972,236.39,236.34,30.5]
[1759772502513,0.72,236.38,236.34,30.5]
[1759772502900,4.95059678,236.38,236.34,30.5]
[1759772503097,0.72,236.37,236.34,30.5]
[1759772503302,0.72,236.36,236.29,0.72]
[1759772503505,0.72,236.36,236.33,20.8]
[1759772503705,0.72,236.35,236.33,51.3]
[1759772504017,0.72,236.38,236.33,51.3]
[1759772504513,10.57484877,236.41,236.34,0.72]
[1759772504923,14.80478828,236.41,236.34,0.72]
[1759772505318,15.52478828,236.41,236.34,0.72]
[1759772506010,15.52478828,236.41,236.33,51.3]
[1759772506212,0.72,236.4,236.33,51.3]
[1759772506518,0.72,236.4,236.34,51.3]
[1759772507617,4.23029738,236.39,236.34,51.3]
[1759772507820,4.95029738,236.39,236.34,52.02]
[1759772508518,10.57484877,236.41,236.35,0.68]
[1759772508719,11.25484877,236.41,236.36,30.5]
[1759772509311,0.68,236.4,236.36,30.5]
[1759772510030,14.80478828,236.41,236.36,31.18]
[1759772510205,4.22993951,236.41,236.36,31.18]
[1759772510405,4.22993951,236.41,236.36,30.5]
[1759772510605,4.22993951,236.41,236.36,31.18]
[1759772511308,4.22993951,236.41,236.36,30.5]
[1759772511516,4.22993951,236.41,236.37,0.68]
[1759772512727,4.22976059,236.42,236.37,0.68]
[1759772512903,4.90976059,236.42,236.37,0.68]
[1759772513606,4.22976059,236.42,236.37,0.68]
[1759772513808,4.90976059,236.42,236.37,0.68]
[1759772514014,4.22976059,236.42,236.37,0.68]
[1759772514213,4.90976059,236.42,236.37,0.68]
[1759772515645,0.68,236.41,236.36,30.5]
[1759772515830,0.68,236.41,236.36,31.18]
[1759772516306,4.22976059,236.42,236.34,20.8]
[1759772516506,14.80416207,236.42,236.35,0.68]
[1759772516703,0.68,236.41,236.36,30.48]
[1759772516914,0.68,236.4,236.37,30.48]
[1759772517529,4.23029738,236.39,236.37,30.48]
[1759772517927,4.23029738,236.39,236.34,21.48]
[1759772518224,4.23029738,236.39,236.37,30.48]
[1759772520411,4.23029738,236.39,236.36,30.48]
[1759772520649,0.68,236.38,236.36,30.48]
[1759772520814,4.23029738,236.39,236.34,20.8]
[1759772521021,4.91029738,236.39,236.35,30.48]
[1759772521335,4.23029738,236.39,236.35,31.16]
[1759772521711,4.23011844,236.4,236.35,31.16]
[1759772522010,4.91011844,236.4,236.35,31.16]
[1759772522206,7.23449534,236.42,236.36,0.68]
[1759772522409,0.1,236.45,236.36,0.68]
[1759772522615,4.32926857,236.45,236.36,0.68]
[1759772523424,0.68,236.44,236.36,0.68]
[1759772523630,0.68,236.44,236.37,30.46]
[1759772523820,4.22958169,236.43,236.37,31.14]
[1759772524127,4.22958169,236.43,236.38,0.68]
[1759772524314,4.22958169,236.43,236.39,0.68]
[1759772524513,4.32940058,236.45,236.4,0.68]
[1759772524728,0.1,236.45,236.41,0.68]
[1759772524914,0.1,236.45,236.42,0.68]
[1759772525113,0.1,236.45,236.43,31.14]
[1759772525722,0.1,236.45,236.43,30.46]
[1759772525922,4.32934977,236.45,236.41,0.68]
[1759772526121,4.32934977,236.45,236.43,30.46]
[1759772526322,4.32934977,236.45,236.41,0.68]
[1759772526534,4.32934977,236.45,236.42,30.46]
[1759772527122,4.32934977,236.45,236.43,30.46]
[1759772527333,0.1,236.45,236.43,30.46]
[1759772528123,4.32922625,236.45,236.43,30.46]
[1759772528636,4.32922625,236.45,236.42,0.68]
[1759772528940,4.32922625,236.45,236.43,30.46]
[1759772529727,4.32922625,236.45,236.43,31.14]
[1759772530338,0.1,236.45,236.44,0.68]
[1759772532746,4.3292752,236.45,236.44,30.44]
[1759772532953,5.0092752,236.45,236.33,131.5]
[1759772533129,0.68,236.44,236.36,0.68]
[1759772533334,0.68,236.44,236.37,30.44]
[1759772533639,0.68,236.43,236.37,51.24]
[1759772533841,0.68,236.43,236.38,30.44]
[1759772534041,0.68,236.42,236.22,138.50600867]
[1759772534219,0.68,236.41,236.32,0.68]
[1759772534620,0.68,236.41,236.33,30.44]
[1759772534938,0.68,236.4,236.33,30.44]
[1759772536249,0.68,236.39,236.34,30.44]
[1759772536427,0.68,236.39,236.34,0.68]
[1759772536627,0.68,236.39,236.34,31.12]
[1759772536829,4.91047635,236.38,236.34,30.44]
[1759772537546,4.23047635,236.38,236.34,30.44]
[1759772537749,4.23047635,236.38,236.35,0.68]
[1759772538247,3.00464802,236.44,236.34,30.44]
[1759772538248,0.69,236.44,236.36,0.69]
[1759772538448,4.22958169,236.43,236.36,0.69]
[1759772541045,4.23011844,236.4,236.35,30.44]
[1759772541230,4.92011844,236.4,236.35,31.13]
[1759772541551,4.92011844,236.4,236.35,0.69]
[1759772541742,4.92011844,236.4,236.35,31.13]
[1759772542549,15.49541454,236.4,236.35,31.13]
[1759772542739,15.49541454,236.4,236.35,30.44]
[1759772542740,0.69,236.39,236.35,30.44]
[1759772543047,4.92041396,236.39,236.35,0.69]
[1759772543239,4.23041396,236.39,236.36,0.69]
[1759772544236,10.5752961,236.4,236.36,0.69]
[1759772545344,0.69,236.4,236.35,30.42]
[1759772545545,0.69,236.4,236.35,31.11]
[1759772546639,4.23047635,236.38,236.35,31.11]
[1759772547358,4.23047635,236.38,236.36,0.69]
[1759772547740,4.91993951,236.41,236.35,30.42]
[1759772548262,15.49478828,236.41,236.35,30.42]
[1759772548436,0.69,236.4,236.35,30.42]
[1759772548637,0.69,236.39,236.35,30.42]
[1759772549435,14.80478828,236.41,236.35,31.11]
[1759772549755,0.69,236.39,236.35,31.11]
[1759772549937,4.23047635,236.38,236.35,31.11]
[1759772550142,4.23047635,236.38,236.35,30.42]
[1759772550962,4.23047635,236.38,236.35,31.11]
[1759772551858,4.23047635,236.38,236.35,30.42]
[1759772552642,4.23047635,236.38,236.34,30.42]
[1759772552846,0.69,236.39,236.34,30.42]
[1759772552847,0.69,236.39,236.35,0.69]
[1759772553473,0.69,236.39,236.31,30.42]
[1759772553645,0.69,236.38,236.3,21.49]
[1759772553845,0.69,236.37,236.31,30.42]
[1759772554468,0.69,236.37,236.32,30.42]
[1759772554862,4.23083432,236.36,236.32,30.42]
[1759772555050,4.23083432,236.36,236.32,31.11]
[1759772555251,4.23083432,236.36,236.32,0.69]
[1759772555449,4.23083432,236.36,236.32,30.42]
[1759772555657,4.23083432,236.36,236.33,0.69]
[1759772555868,0.72,236.35,236.2,4.65945098]
[1759772556072,0.72,236.35,236.09,20.2]
[1759772556073,3.72464802,236.34,236.21,0.69]
[1759772556268,3.72464802,236.34,236.22,22.6]
[1759772556452,3.00464802,236.32,236.23,0.69]
[1759772556657,0.72,236.31,236.23,0.69]
[1759772556956,4.23190859,236.3,236.23,0.69]
[1759772558971,30.42,236.39,236.24,30.42]
[1759772559175,0.72,236.37,236.27,20.8]
[1759772559475,0.72,236.37,236.28,0.69]
[1759772559770,3.00464802,236.34,236.24,0.69]
[1759772559947,0.72,236.33,236.24,0.69]
[1759772561071,14.81042654,236.32,236.19,4.23386829]
[1759772561379,0.72,236.31,236.22,0.69]
[1759772561977,4.23155044,236.32,236.22,0.69]
[1759772562470,0.72,236.31,236.23,30.4]
[1759772563068,4.23190859,236.3,236.23,30.4]
[1759772563269,4.95190859,236.3,236.23,30.4]
[1759772563655,4.95190859,236.3,236.22,0.69]
[1759772563855,15.53168006,236.3,236.22,31.09]
[1759772564052,0.72,236.29,236.22,0.69]
[1759772564362,14.81168006,236.3,236.22,0.69]
[1759772564566,15.53168006,236.3,236.22,0.69]
[1759772565149,15.53168006,236.3,236.2,0.69]
[1759772567475,15.53168006,236.3,236.21,20.8]
[1759772567674,0.72,236.29,236.21,20.8]
[1759772567876,0.72,236.28,236.21,20.8]
[1759772568576,0.71,236.27,236.21,20.8]
[1759772568974,0.71,236.27,236.21,21.45]
[1759772569274,4.23262507,236.26,236.21,21.45]
[1759772569579,4.94262507,236.26,236.22,0.65]
[1759772570261,4.94262507,236.26,236.21,20.8]
[1759772570576,0.71,236.25,236.21,20.8]
[1759772571460,4.23262507,236.26,236.2,0.65]
[1759772571664,0.71,236.25,236.17,30.4]
[1759772571964,0.71,236.25,236.18,0.65]
[1759772572355,4.2329834,236.24,236.18,0.65]
[1759772572982,4.9429834,236.24,236.18,0.65]
[1759772574272,4.9429834,236.24,236.11,0.2]
[1759772574273,3.00464802,236.23,236.11,0.2]
[1759772574479,3.00464802,236.23,236.11,0.85]
[1759772574480,0.71,236.22,236.11,0.85]
[1759772575966,4.23352101,236.21,236.12,0.65]
[1759772576174,0.71,236.2,236.12,0.65]
[1759772577582,0.71,236.2,236.12,21.45]
[1759772577884,0.71,236.19,236.12,21.45]
[1759772578974,4.23405876,236.18,236.12,0.65]
[1759772579566,0.71,236.17,236.11,0.2]
[1759772579769,0.71,236.17,236.12,20.8]
[1759772579971,0.71,236.21,236.13,0.65]
[1759772581085,4.23370025,236.2,236.11,0.85]
[1759772581393,0.71,236.19,236.11,0.2]
[1759772583282,14.81920568,236.18,236.11,0.2]
[1759772583483,0.71,236.17,236.11,0.2]
[1759772585288,14.82108828,236.15,236.11,0.2]
[1759772585585,0.71,236.14,236.11,0.2]
[1759772587492,4.23495532,236.13,236.11,0.2]
[1759772587665,0.71,236.12,236.11,0.2]
[1759772590088,4.94513467,236.12,236.11,0.2]
[1759772592374,6.87153189,236.12,236.11,0.2]
[1759772593476,37.25153189,236.12,236.11,0.2]
[1759772593874,67.00160988,236.12,236.11,1e-08]
[1759772594274,68.9280071,236.12,236.11,1e-08]
[1759772594689,70.62324559,236.12,236.11,1e-08]
[1759772594974,31.67647521,236.1,236.09,1e-08]
[1759772595173,33.60287243,236.1,236.09,1e-08]
[1759772595383,32.38647521,236.1,236.09,1e-08]
[1759772595583,34.31287243,236.1,236.09,1e-08]
[1759772596374,36.00825463,236.1,236.09,1e-08]
[1759772596579,40.24374806,236.1,236.09,1e-08]
[1759772596894,70.62374806,236.1,236.09,1e-08]
[1759772598293,40.24374806,236.1,236.09,1e-08]
[1759772598491,70.62374806,236.1,236.09,1e-08]
[1759772599104,10.87647521,236.09,236.08,1e-08]
[1759772599401,38.94727285,236.1,236.08,1e-08]
[1759772599402,19.44374806,236.1,236.08,1e-08]
[1759772599603,10.87647521,236.08,236.07,1e-08]
[1759772599802,12.80287243,236.08,236.07,1e-08]
[1759772599977,13.46287243,236.08,236.07,1e-08]
[1759772600893,17.69872468,236.08,236.07,1e-08]
[1759772601586,15.77232746,236.08,236.07,1e-08]
[1759772601797,6.82224947,236.08,236.07,1e-08]
[1759772601978,17.69872468,236.08,236.07,1e-08]
[1759772602382,15.77232746,236.08,236.07,1e-08]
[1759772602590,17.69872468,236.08,236.07,1e-08]
[1759772603184,48.07872468,236.08,236.07,1e-08]
[1759772603582,15.11232746,236.08,236.07,1e-08]
[1759772603778,66.29232746,236.08,236.07,1e-08]
[1759772604709,66.95232746,236.08,236.07,1e-08]
[1759772604911,68.64778152,236.08,236.07,1e-08]
[1759772605221,70.57417874,236.08,236.07,1e-08]
[1759772605387,83.28554725,236.08,236.07,1e-08]
[1759772606894,48.62369597,236.08,236.07,1e-08]
[1759772607308,79.00369597,236.08,236.07,1e-08]
[1759772607499,48.62369597,236.08,236.07,1e-08]
[1759772607694,79.00369597,236.08,236.07,1e-08]
[1759772608006,48.62369597,236.08,236.07,1e-08]
[1759772608306,79.00369597,236.08,236.07,1e-08]
[1759772608489,79.66369597,236.08,236.07,1e-08]
[1759772608691,79.00369597,236.08,236.07,1e-08]
[1759772611398,55.41585225,236.08,236.07,1e-08]
[1759772612089,56.07585225,236.08,236.07,1e-08]
[1759772612690,58.00224947,236.08,236.07,1e-08]
[1759772612885,68.87872468,236.08,236.07,1e-08]
[1759772614490,70.57410688,236.08,236.07,1e-08]
[1759772614712,49.77410688,236.08,236.07,1e-08]
[1759772618920,49.77410688,236.08,236.0,0.2]
[1759772619123,1.92639722,236.04,236.0,0.2]
[1759772619314,35.62548288,236.08,236.01,0.71]
[1759772619626,30.36,236.07,236.01,0.71]
[1759772621114,4.23621113,236.06,236.01,0.71]
[1759772621310,30.36,236.05,236.01,0.71]
[1759772621504,32.28639722,236.05,236.0,0.2]
[1759772621705,0.71,236.04,236.0,0.91]
[1759772622018,32.99639722,236.03,236.0,0.2]
[1759772622911,32.28639722,236.03,236.0,0.2]
[1759772623221,4.23692907,236.02,236.0,0.2]
[1759772623614,30.36,236.01,236.0,0.2]
[1759772625435,34.59710859,236.01,236.0,0.2]
[1759772626632,30.34,236.01,236.0,0.2]
[1759772626828,4.23692907,236.02,236.0,0.91]
[1759772627234,4.23657007,236.04,236.01,0.71]
[1759772627621,30.34,236.03,236.01,0.71]
[1759772627826,4.23657007,236.04,236.02,0.71]
[1759772628039,30.34,236.03,236.02,0.71]
[1759772628413,4.23657007,236.04,236.02,0.71]
[1759772628609,14.82736707,236.05,236.02,0.71]
[1759772628813,30.34,236.04,236.02,0.71]
[1759772629051,30.34,236.03,236.0,0.2]
[1759772629217,14.82736707,236.05,236.0,0.2]
[1759772629535,17.45376429,236.05,236.0,0.2]
[1759772629743,31.04,236.04,236.0,0.2]
[1759772629928,30.34,236.03,236.0,0.2]
[1759772630130,0.7,236.04,236.0,0.2]
[1759772630343,30.34,236.03,236.0,0.2]
[1759772630641,30.34,236.02,236.0,0.2]
[1759772630849,4.23710859,236.01,236.0,0.2]
[1759772631352,25.03867594,236.06,236.0,0.87]
[1759772631353,20.8,236.06,236.0,0.87]
[1759772631522,30.34,236.05,236.0,0.87]
[1759772631724,30.34,236.04,236.01,0.67]
[1759772631922,4.23651779,236.05,236.01,0.67]
[1759772632224,4.23651779,236.05,236.0,0.2]
[1759772632225,4.23651779,236.05,236.02,0.67]
[1759772632538,4.23651779,236.05,236.03,0.67]
[1759772632719,30.34,236.04,236.03,0.67]
[1759772632922,34.57657007,236.04,236.03,0.67]
[1759772633123,4.23657007,236.04,236.03,0.67]
[1759772633517,34.57657007,236.04,236.03,0.67]
[1759772633746,30.34,236.04,236.03,0.67]
[1759772634042,4.23638863,236.06,236.03,0.67]
[1759772634043,30.34,236.05,236.03,0.67]
[1759772634247,10.58852762,236.11,236.03,0.67]
[1759772634451,40.92873358,236.1,236.03,0.67]
[1759772634835,0.7,236.09,236.01,0.67]
[1759772635036,14.82548288,236.08,236.01,0.67]
[1759772635230,30.34,236.07,236.01,0.67]
[1759772636959,30.32,236.06,236.01,0.67]
[1759772637262,34.55639059,236.05,236.01,0.67]
[1759772637428,4.23639059,236.05,236.01,0.67]
[1759772637628,30.32,236.04,236.0,0.2]
[1759772638129,0.7,236.03,236.0,0.2]
[1759772638532,30.32,236.02,236.0,0.2]
[1759772638834,30.32,236.01,236.0,0.2]
[1759772639348,34.55710859,236.01,236.0,0.2]
[1759772639552,4.23710859,236.01,236.0,0.2]
[1759772639752,34.55710859,236.01,236.0,0.2]
[1759772640128,4.23710859,236.01,236.0,0.2]
[1759772640329,34.55710859,236.01,236.0,0.2]
[1759772640790,4.23710859,236.01,236.0,0.2]
[1759772640930,34.55710859,236.01,236.0,0.2]
[1759772642147,4.23710859,236.01,236.0,0.2]
[1759772642347,34.55710859,236.01,236.0,0.2]
[1759772644856,4.23688356,236.03,236.0,0.87]
[1759772645056,20.8,236.07,236.01,0.67]
[1759772645057,51.12,236.05,236.01,0.67]
[1759772645237,4.23657007,236.04,236.01,0.67]
[1759772645438,4.23657007,236.04,236.02,0.67]
[1759772645768,4.23657007,236.04,236.0,0.2]
[1759772646161,30.32,236.03,236.0,0.2]
[1759772646959,4.23692907,236.02,236.0,0.2]
[1759772650161,4.23692907,236.02,236.0,0.87]
[1759772650359,30.32,236.03,236.01,0.67]
[1759772650539,4.23664975,236.04,236.02,0.67]
[1759772650736,34.53664975,236.04,236.03,0.67]
[1759772650938,34.53664975,236.04,236.0,0.2]
[1759772651138,34.53664975,236.04,236.01,0.67]
[1759772651945,34.53664975,236.04,236.0,0.2]
[1759772652158,45.12807493,236.04,236.0,0.2]
[1759772652348,45.82807493,236.04,236.0,0.2]
[1759772653452,45.12807493,236.04,236.0,0.2]
[1759772653650,0.7,236.03,236.0,0.2]
[1759772654047,4.23692907,236.02,236.0,0.2]
[1759772655475,4.23676975,236.03,236.0,0.2]
[1759772655675,4.23676975,236.03,236.0,0.87]
[1759772656148,21.5,236.08,236.01,0.67]
[1759772656352,34.53603168,236.07,236.01,0.67]
[1759772662443,45.82611089,236.07,236.01,0.67]
[1759772663469,30.3,236.07,236.01,0.67]
[1759772663775,0.7,236.15,236.05,20.8]
[1759772663961,4.93405876,236.18,236.06,0.69]
[1759772664273,28.09405876,236.18,236.06,0.69]
[1759772664573,28.09405876,236.18,236.07,4.23603168]
[1759772664763,28.09405876,236.18,236.08,0.69]
[1759772664966,4.23387031,236.2,236.08,0.69]
[1759772665259,4.23244593,236.27,236.11,10.87647521]
[1759772665463,0.7,236.26,236.13,10.87647521]
[1759772665660,7.24706859,236.27,236.13,10.87647521]
[1759772665661,0.7,236.25,236.14,0.69]
[1759772666255,4.2329834,236.24,236.15,4.23459665]
[1759772666570,4.2329834,236.24,236.16,0.69]
[1759772667963,0.7,236.25,236.16,0.69]
[1759772669183,4.23244593,236.27,236.17,20.8]
[1759772669475,4.93244593,236.27,236.18,0.69]
[1759772669865,4.23244593,236.27,236.19,20.8]
[1759772670063,4.23244593,236.27,236.2,0.69]
[1759772671080,0.7,236.26,236.2,0.69]
[1759772672170,4.93268212,236.26,236.2,0.69]
[1759772673263,10.58101757,236.28,236.2,0.69]
[1759772673264,4.93242084,236.28,236.2,0.69]
[1759772676876,4.93242084,236.28,236.17,4.23423804]
[1759772677079,0.72,236.27,236.17,4.23423804]
[1759772677583,0.72,236.26,236.16,55.29438109]
[1759772678161,0.72,236.26,236.16,65.88042445]
[1759772678584,0.82,236.29,236.17,10.87647521]
[1759772678767,0.1,236.29,236.17,10.87647521]
[1759772678967,0.1,236.29,236.21,20.8]
[1759772679369,0.1,236.29,236.22,0.67]
[1759772679978,0.1,236.29,236.22,21.47]
[1759772680182,0.1,236.29,236.23,30.91]
[1759772681083,4.33210292,236.29,236.23,30.91]
[1759772681594,0.1,236.29,236.23,35.14314957]
[1759772682575,4.33209014,236.29,236.22,20.8]
[1759772682778,5.05209014,236.29,236.23,30.22]
[1759772683273,0.82,236.29,236.23,30.89]
[1759772684277,5.0521314,236.29,236.23,30.89]
[1759772686111,0.82,236.29,236.23,35.12311821]
[1759772686466,0.82,236.29,236.23,4.90311821]
[1759772686687,0.82,236.29,236.24,30.22]
[1759772686888,0.82,236.29,236.24,30.89]
[1759772687189,4.3321867,236.29,236.22,20.8]
[1759772687401,3.01462266,236.25,236.15,0.67]
[1759772687693,3.01462266,236.25,236.16,30.22]
[1759772687895,0.72,236.24,236.16,30.89]
[1759772688081,0.72,236.24,236.17,0.69]
[1759772689192,0.72,236.24,236.18,4.23405876]
[1759772689789,4.23271771,236.26,236.18,4.23405876]
[1759772690094,4.92271771,236.26,236.18,4.92405876]
[1759772690506,3.01462266,236.28,236.18,4.92405876]
[1759772690507,0.69,236.25,236.18,4.92405876]
[1759772691512,4.92284843,236.25,236.18,4.92405876]
[1759772691677,0.69,236.25,236.18,4.92405876]
[1759772692495,0.69,236.25,236.19,30.2]
[1759772693202,0.69,236.25,236.19,34.43382842]
[1759772693377,0.69,236.24,236.18,0.69]
[1759772693582,0.69,236.24,236.19,30.2]
[1759772694274,7.24747268,236.25,236.19,30.2]
[1759772694472,0.69,236.24,236.18,4.23405695]
[1759772694779,0.69,236.24,236.19,0.69]
[1759772695485,0.1,236.29,236.22,20.8]
[1759772695680,0.1,236.29,236.13,3.39884494]
[1759772695887,3.70462266,236.28,236.14,10.87647521]
[1759772696087,3.01462266,236.22,236.16,1.6934801]
[1759772696284,3.01462266,236.2,236.08,10.87647521]
[1759772696485,3.01462266,236.18,236.07,16.77681846]
[1759772696715,3.01462266,236.16,236.0,0.2]
[1759772696884,0.69,236.18,236.08,0.69]
[1759772697091,0.69,236.18,236.09,30.2]
[1759772697294,0.69,236.2,236.1,0.69]
[1759772697515,0.69,236.2,236.1,4.92535732]
[1759772697709,0.69,236.2,236.11,0.69]
[1759772697889,3.70462266,236.2,236.11,0.69]
[1759772698814,3.01462266,236.18,236.11,30.2]
[1759772698995,0.69,236.17,236.11,30.2]
[1759772699701,3.01462266,236.12,236.02,0.69]
[1759772699881,3.01462266,236.1,236.03,30.2]
[1759772700087,3.01462266,236.1,236.04,0.69]
[1759772700486,0.69,236.09,236.05,30.2]
[1759772701290,0.69,236.09,236.0,0.2]
[1759772701291,1.92806963,236.06,236.0,0.2]
[1759772701604,1.92806963,236.04,236.0,26.28]
[1759772701815,4.23568974,236.09,236.0,0.2]
[1759772701816,0.69,236.03,236.0,0.2]
[1759772701990,0.69,236.06,236.0,30.4]
[1759772702301,1.92806963,236.1,236.01,0.69]
[1759772702486,2.61806963,236.1,236.01,30.89]
[1759772702690,2.61806963,236.1,236.01,30.2]
[1759772702888,2.61806963,236.1,236.03,4.23674956]
[1759772703203,1.92806963,236.1,236.04,0.69]